Cogmind - Beta 12 @@@ ROGUE MODE // 2023.04.03 @ 08:01:11 Player: Flying CBT Exoskeleton Result: Escaped singularity! Performance ------------- Evolutions (9) 4500 Regions Visited (34) 6800 Robots Destroyed (159) 795 Value Destroyed (6095) 6095 Prototype IDs (306) 6120 Alien Tech Used (10) 2000 Bonus (47369) 47369 TOTAL SCORE: 73679 Bonus ------- High Alert Combat Kills 503 Follower Combat Kills 860 Network Hubs Disabled 400 Aligned with FarCom 300 Met Zhirov 300 Met Warlord at Base 500 MAIN.C Attacked Warlord 500 Used Core Reset Matrix 3000 Met Warlord at Research 2000 Destroyed MAIN.C Guards 500 Met MAIN.C 5000 Destroyed MAIN.C Shell 5000 Destroyed MAIN.C 10000 Met Warlord at Command 2000 Met Architect 300 Destroyed Architect 15000 Win 3000 Friendly Fire -1794 Cogmind --------- Core Integrity 1045/1600 Matter 109/300 Energy 187/240 System Corruption 1% Temperature Cool (42) Movement Flying (13) Location Near Former Tau Ceti IV Parts ------- > --- POWER (2) -------- Improved Fusion Compressor Zero-point Reactor > --- PROPULSION (8) --- Flying QT-XBT Exoskeleton Advanced Surge Thruster Improved Diametric Drive Cooled Q-thruster Experimental Q-thruster Experimental Q-thruster > --- UTILITY (11) ----- Coolant Network Medium Storage Unit Experimental Targeting Computer Experimental Core Analyzer Advanced Weapon Cycler Advanced Reaction Control System Advanced Phase Shifter Experimental Powered Armor Experimental Force Field > --- WEAPON (4) ------- Sigix Broadsword > --- INVENTORY (10) --- Experimental Energy Well (600) Experimental Matter Compressor (400) Advanced Reaction Control System Experimental Powered Armor Perforator Peak State ------------ > --- POWER ------------ Improved Fusion Compressor Zero-point Reactor > --- PROPULSION ------- Flying QT-XBT Exoskeleton Advanced Surge Thruster Improved Diametric Drive Cooled Q-thruster Experimental Q-thruster Experimental Q-thruster > --- UTILITY ---------- Advanced Power Amplifier Coolant Network Medium Storage Unit Experimental Targeting Computer Experimental Core Analyzer Advanced Weapon Cycler Advanced Reaction Control System Advanced Phase Shifter Experimental Powered Armor Experimental Force Field > --- WEAPON ----------- Cooled Nova Cannon Cooled Nova Cannon Sigix Broadsword > --- INVENTORY -------- Experimental Energy Well Experimental Energy Well Experimental Matter Compressor Advanced Reaction Control System Experimental Powered Armor Perforator Field Lobotomy Kit [Rating: 232] Favorites ----------- Power Zero-point Reactor Engine Cooled Ion Engine Power Core Improved Fusion Compressor Reactor Zero-point Reactor Propulsion Improved VTOL Module Treads Light Treads Leg Aluminum Leg Flight Unit Improved VTOL Module Utility Armored Scrap Engine Device Armored Scrap Engine Storage Medium Storage Unit Processor Machine Analyzer Hackware Hacking Suite Protection Experimental Powered Armor Artifact Phase Armor Weapon Sigix Broadsword Energy Gun Improved EM Shotgun Energy Cannon Cooled Nova Cannon Ballistic Gun Enhanced Autogun Ballistic Cannon Constructs Launcher Rocket Launcher Special Weapon Field Lobotomy Kit Impact Weapon Power Maul Slashing Weapon Sigix Broadsword Piercing Weapon Makeshift Spear Special Melee Weapon Dirty Datajack Build | -11 -10 -10 -9 -9 -9 -8 -8 -8 -8 -6 -6 -6 -6 -6 -6 -6 -5 -5 -5 -5 -4 -4 -4 -4 -4 -3 -3 -3 -3 -2 -2 -1 -1 -1 ------- Run | Jun Mat Min Mat Min Exi Min Mat Sto Rec Fac Was Fac Ext Cet Arc Hub Fac Upp Upp War Pro Fac Upp Upp Zhi Pro Res Qua Sec Res Tes Acc Com Ac0 Slots Evolved 18 | . . . 2 . . . 2 . . 4 . . . . . . 2 . . . . 2 . . . . 2 . . 2 . 2 . . Power 1 | . . . 1 . . . . . . . . . . . . . . . . . . . . . . . . . . . . . . . Propulsion 6 | . . . 1 . . . . . . 2 . . . . . . 1 . . . . 2 . . . . . . . . . . . . Utility 9 | . . . . . . . 2 . . 2 . . . . . . 1 . . . . . . . . . 2 . . 1 . 1 . . Weapon 2 | . . . . . . . . . . . . . . . . . . . . . . . . . . . . . . 1 . 1 . . Parts Attached 359 | 3 6 4 11 1 2 1 8 22 . 15 . 2 3 1 2 7 5 2 . 9 4 8 . 3 2 1 24 14 8 16 23 15 121 16 Power 40 | . . . 4 . 1 . 2 1 . 4 . . . 1 . 1 2 . . . . 2 . 1 1 . 5 . . 2 1 . 12 . Engine 13 | . . . 4 . 1 . 2 1 . 2 . . . . . . 2 . . . . . . . . . . . . . . . 1 . Core 11 | . . . . . . . . . . 2 . . . 1 . 1 . . . . . . . 1 . . 1 . . . 1 . 4 . Reactor 16 | . . . . . . . . . . . . . . . . . . . . . . 2 . . 1 . 4 . . 2 . . 7 . Propulsion 46 | . 1 2 2 . . . . 11 . 2 . . . . . 1 1 . . 1 1 1 . . . 1 2 2 . 1 6 2 9 . Treads 9 | . . 2 2 . . . . 5 . . . . . . . . . . . . . . . . . . . . . . . . . . Leg 2 | . 1 . . . . . . . . . . . . . . . . . . . . . . . . . . . . . . . 1 . Wheel . | . . . . . . . . . . . . . . . . . . . . . . . . . . . . . . . . . . . Hover . | . . . . . . . . . . . . . . . . . . . . . . . . . . . . . . . . . . . Flight 35 | . . . . . . . . 6 . 2 . . . . . 1 1 . . 1 1 1 . . . 1 2 2 . 1 6 2 8 . Utility 176 | 2 1 . 2 1 . 1 3 4 . 5 . 2 1 . . 2 1 . . 6 2 4 . . 1 . 14 9 8 12 7 10 77 1 Device 101 | 2 . . . 1 . 1 . . . 2 . . . . . 1 1 . . 4 1 4 . . . . 8 4 6 8 4 7 47 . Storage 24 | . . . 1 . . . . 1 . . . . . . . . . . . . . . . . . . 2 2 . . . 1 17 . Processor 19 | . . . . . . . . 1 . 1 . . . . . 1 . . . 2 1 . . . . . 1 . . 4 . 1 6 1 Hackware 13 | . . . . . . . 1 . . 2 . . . . . . . . . . . . . . . . 3 1 2 . 2 1 1 . Protection 18 | . 1 . 1 . . . 2 2 . . . 2 1 . . . . . . . . . . . 1 . . 1 . . 1 . 6 . Artifact 1 | . . . . . . . . . . . . . . . . . . . . . . . . . . . . 1 . . . . . . Weapon 97 | 1 4 2 3 . 1 . 3 6 . 4 . . 2 . 2 3 1 2 . 2 1 1 . 2 . . 3 3 . 1 9 3 23 15 Energy Gun 18 | 1 1 . 2 . 1 . 2 1 . . . . 1 . 1 1 . 1 . . . . . . . . . . . . 1 1 4 . Energy Cannon 11 | . . . 1 . . . . . . . . . . . . . . . . . . . . . . . . . . . 2 . 2 6 Ballistic Gun 12 | . . . . . . . . 4 . 3 . . . . 1 1 . 1 . . . . . . . . . . . . . . 2 . Ballistic Cannon 8 | . . . . . . . . . . . . . . . . . . . . . . . . . . . . . . . 1 . 1 6 Launcher 9 | . 2 2 . . . . 1 1 . 1 . . 1 . . . 1 . . . . . . . . . . . . . . . . . Special Weapon 7 | . 1 . . . . . . . . . . . . . . . . . . . . . . . . . . . . . . . 3 3 Impact Weapon 1 | . . . . . . . . . . . . . . . . . . . . . . . . . . . . . . . . . 1 . Slashing Weapon 16 | . . . . . . . . . . . . . . . . . . . . . . . . . . . 2 3 . . 2 2 7 . Piercing Weapon 6 | . . . . . . . . . . . . . . . . 1 . . . 2 . 1 . 1 . . 1 . . . . . . . Special Melee Weapon 9 | . . . . . . . . . . . . . . . . . . . . . 1 . . 1 . . . . . 1 3 . 3 . Unidentified Prototypes 47 | . . . 2 1 . . . 2 . . . . . . . . . . . 4 . 1 . . 3 . 9 3 1 1 10 4 6 . Corrupted Parts 10 | . . . . . . . 1 3 . . . . . . . 1 . . . . . . . . . . . . . . . . 5 . System Corruption 51 | . . . . . . . 1 11 . . . . . . . 10 . . . . . . . . . . . . . . . . 29 . Parts Lost 38 | . . . 2 . . . . 7 . . . . 3 . . 4 1 1 . 7 1 . . 2 . . 2 . 2 . . . 5 1 Power 11 | . . . 1 . . . . 1 . . . . 2 . . 1 . 1 . 2 . . . 1 . . . . . . . . 2 . Propulsion 11 | . . . . . . . . 3 . . . . 1 . . 1 . . . 1 . . . 1 . . 2 . 1 . . . 1 . Utility 13 | . . . 1 . . . . 2 . . . . . . . 2 . . . 4 1 . . . . . . . 1 . . . 1 1 Weapon 3 | . . . . . . . . 1 . . . . . . . . 1 . . . . . . . . . . . . . . . 1 . Highest Loss Streak 7 | . . . 1 . . . . 4 . . . . 1 . . 4 1 1 . 7 1 . . 2 . . 2 . 2 . . . 2 1 To Critical Strikes . | . . . . . . . . . . . . . . . . . . . . . . . . . . . . . . . . . . . Average Slot Usage (%) 78 | . 100 100 86 96 88 89 93 77 54 78 86 81 77 60 72 70 71 76 70 85 50 74 84 78 77 78 85 83 73 80 83 85 70 78 Engine 5 | . 14 14 12 22 22 22 18 9 . 4 . . 7 6 6 6 8 11 5 10 . . . . . . . . . . . . . . Core 2 | . . . . . . . . . . 6 13 13 4 . . 2 . . . . . . . 4 1 . . . . . 5 8 3 4 Reactor 2 | . . . . . . . . . . . . . . . . . . . . . . 8 10 5 9 10 8 9 6 4 1 . 3 4 Treads 5 | . . 10 29 33 33 33 27 13 . . . . . . . . . . . . . . . . . . . . . . . . . . Leg 1 | . 28 17 . . . . . . . . . . . . . . . . . . . . . . . . . . . . . . . . Flight 20 | . . . . . . . . 12 27 33 33 33 31 26 26 30 24 29 29 28 23 26 31 26 26 26 30 32 29 29 29 27 24 24 Device 17 | . 19 14 8 8 . 1 9 4 . 7 . . . . . 1 11 11 11 21 6 23 26 26 26 26 26 19 16 23 26 24 24 23 Storage 5 | . . . 2 11 11 11 9 9 9 6 6 6 6 6 6 6 5 5 . . . . . . . . . 7 4 4 4 4 5 5 Processor 1 | . . . . . . . . . . 5 6 3 . . . 1 5 5 5 5 7 5 5 5 1 . . . . 2 4 4 . 6 Hackware 1 | . . . . . . . 3 5 . 2 13 10 2 . . . . . . . . . . . . . 3 9 9 5 2 5 . . Protection 4 | . 9 14 11 . . . 9 6 9 1 . 5 17 20 20 11 5 5 5 4 . . . . 3 5 4 1 . . . . 2 4 Energy Gun 3 | . 4 . 13 22 22 22 17 5 . . . . 6 . 5 3 . 1 5 . . . . . . . . . . . . 2 . . Ballistic Gun 1 | . 6 . . . . . . 10 9 6 6 4 . . 5 3 2 1 5 . . . . . . . . . . . . . . . Launcher 1 | . 14 28 6 . . . . . . 1 6 3 . . . . . 1 . . . . . . . . . . . . . . . . Slashing Weapon 1 | . . . . . . . . . . . . . . . . . . . . . . . . . . . . 3 4 4 3 6 3 4 Piercing Weapon 1 | . . . . . . . . . . . . . . . . 1 5 . . 9 5 8 10 10 10 10 8 . . . . . . . Naked Turns . | . . . . . . . . . . . . . . . . . . . . . . . . . . . . . . . . . . . Heaviest Build 89 | 15 17 17 39 33 32 33 44 40 13 25 24 24 22 19 25 25 21 23 16 15 5 32 32 32 33 33 54 65 65 77 65 58 89 79 Greatest Support 86 | 20 20 40 60 60 60 60 60 60 15 25 25 25 25 20 20 26 34 34 34 34 21 46 46 40 40 48 67 73 73 60 60 59 86 81 Greatest Overweight (x) 15 | . . . . . . . . 1 . . . . . . 1 . . . . . 1 . . . . . 1 1 . 1 1 . 15 . Average Overweight (x) . | . . . . . . . . . . . . . . . . . . . . . . . . . . . . . . . . . . . Largest Inventory Capacity 40 | 8 5 5 10 10 10 10 10 40 40 40 40 40 40 40 40 40 40 40 40 5 5 5 5 5 5 5 15 15 15 15 15 15 25 10 Average Capacity 12 | 6 5 5 6 10 10 10 10 23 40 40 40 40 40 40 40 40 40 40 5 5 5 5 5 5 5 5 5 15 15 15 15 15 9 10 Most Carried 15 | 6 5 5 7 6 10 10 10 10 13 12 10 12 12 11 11 11 10 10 8 5 5 3 3 3 5 5 8 15 15 15 15 15 15 10 Average Carried 8 | 4 4 4 5 5 9 9 9 8 12 8 9 10 11 10 9 8 7 9 5 3 4 3 3 3 3 5 5 12 12 13 14 14 9 8 Final Capacity 40 | 5 5 5 10 10 10 10 10 40 40 40 40 40 40 40 40 40 40 40 5 5 5 5 5 5 5 5 15 15 15 15 15 15 10 10 Final Carried 15 | 4 5 4 7 6 9 10 9 10 13 9 10 11 11 11 11 7 10 8 5 5 3 3 3 3 5 5 8 14 14 14 15 15 10 6 Scrap Engine Consumption 73 | . . . . . . . . . . . . . . . . . . . . 7 . . . . . . 2 1 . 5 6 . 52 . Constructs Created 4 | . . . . . . . . . . . . . . . . . . . . . . . . . . . . . . . . . 4 . Constructs Modified 20 | . . . . . . . . . . . . . . . . . . . . . . . . . . . . . . . . . 20 . Class Distribution -------------------- 17% | Alien-Mutant 17% | Mutant 15% | Alien-Sprinter 12% | Scavenger-Mutant 10% | Sprinter 7% | Hauler-Sprinter 5% | Scavenger-Sprinter 3% | Alien-Gladiator 3% | Hauler-Mutant Dominant Class ---------------- Mutant | -10/Materials Mutant | -10/Mines Scavenger-Mutant | -9/Materials Mutant | -9/Mines Mutant | -9/Exiles Mutant | -8/Mines Mutant | -8/Materials Scavenger-Mutant | -8/Storage Hauler-Sprinter | -8/Recycling Hauler-Sprinter | -6/Factory Hauler-Sprinter | -6/Waste Hauler-Sprinter | -6/Factory Hauler-Sprinter | -6/Extension Hauler-Sprinter | -6/Cetus Hauler-Mutant | -6/Archives Hauler-Mutant | -6/Hub_04(d) Hauler-Sprinter | -5/Factory Hauler-Sprinter | -5/Upper Caves Sprinter | -5/Upper Caves Sprinter | -5/Warlord Mutant | -4/Proximity Caves Sprinter | -4/Factory Scavenger-Sprinter | -4/Upper Caves Scavenger-Sprinter | -4/Upper Caves Sprinter | -4/Zhirov Sprinter | -3/Proximity Caves Sprinter | -3/Research Hacker-Sprinter | -3/Quarantine Hacker-Sprinter | -3/Section 7 Alien-Sprinter | -2/Research Alien-Sprinter | -2/Testing Alien-Ninja | -1/Access Alien-Mutant | -1/Command Scavenger-Sprinter | -1/Access_0 Resources | -11 -10 -10 -9 -9 -9 -8 -8 -8 -8 -6 -6 -6 -6 -6 -6 -6 -5 -5 -5 -5 -4 -4 -4 -4 -4 -3 -3 -3 -3 -2 -2 -1 -1 -1 ----------- Run | Jun Mat Min Mat Min Exi Min Mat Sto Rec Fac Was Fac Ext Cet Arc Hub Fac Upp Upp War Pro Fac Upp Upp Zhi Pro Res Qua Sec Res Tes Acc Com Ac0 Matter Collected 8085 | 248 126 81 320 35 . 30 59 761 . 35 . . 242 . . 80 82 . 13 97 15 80 20 25 30 10 112 178 250 269 348 115 3495 929 Remotely 96 | 55 41 . . . . . . . . . . . . . . . . . . . . . . . . . . . . . . . . . Salvage Created 10392 | 126 206 121 547 . . 178 79 1337 . 35 . . 58 . . 80 97 . . . . 178 . 17 257 . 206 58 250 147 986 523 3372 1534 Parts 480 | 8 14 10 35 . . 8 7 52 . 4 . . 2 . . 2 5 . . . . 8 . 1 2 . 6 2 10 15 25 31 116 117 Haulers Intercepted 13 | . . . 3 . . . . 3 . . . . . . . 1 1 . . . . . . . . . 1 . 1 . 3 . . . Recyclers Shooed 4 | . . . . . . . . 1 . . . . . . . . . . . . . . . . . . 1 . . . 2 . . . Parts Field Recycled . | . . . . . . . . . . . . . . . . . . . . . . . . . . . . . . . . . . . Retrieved Matter . | . . . . . . . . . . . . . . . . . . . . . . . . . . . . . . . . . . . Parts Self-Destructed 1 | . . . . . . . . . . . . . . . . . . . . . . . . . 1 . . . . . . . . . Prevented 1 | . . . . . . . . . . . . . . . . . . . . . 1 . . . . . . . . . . . . . Kills | -11 -10 -10 -9 -9 -9 -8 -8 -8 -8 -6 -6 -6 -6 -6 -6 -6 -5 -5 -5 -5 -4 -4 -4 -4 -4 -3 -3 -3 -3 -2 -2 -1 -1 -1 ------- Run | Jun Mat Min Mat Min Exi Min Mat Sto Rec Fac Was Fac Ext Cet Arc Hub Fac Upp Upp War Pro Fac Upp Upp Zhi Pro Res Qua Sec Res Tes Acc Com Ac0 Combat Hostiles Destroyed 85 | . 7 7 17 . . 3 1 15 . . . . 1 . . . . . . . . . . 1 . . . . . 1 1 . 16 15 Melee 18 | . . . . . . . . . . . . . . . . . . . . . . . . . . . . . . 1 1 . 16 . Guns 20 | . 2 . 4 . . 3 1 10 . . . . . . . . . . . . . . . . . . . . . . . . . . Cannons 16 | . . . 1 . . . . . . . . . . . . . . . . . . . . . . . . . . . . . . 15 AOE 31 | . 5 7 12 . . . . 5 . . . . 1 . . . . . . . . . . 1 . . . . . . . . . . Classes Destroyed 15 | 2 4 . 3 . . 1 1 1 . . . . . . . . . . . . . . . . . . . 1 . 1 . . 1 . Worker 10 | . . . 2 . . . . 1 . . . . . . . . . . . . . . . . . . . . . 2 . . 5 . Builder 8 | . 1 . . . . . . 1 . 1 . . . . . . . . . . . 1 . . . . . . . . . 4 . . Tunneler 3 | 2 . . . . . . . . . . . . . . . . . . . . . 1 . . . . . . . . . . . . Hauler 13 | . . . 3 . . . . 3 . . . . . . . 1 1 . . . . . . . . . 1 . 1 . 3 . . . Recycler 16 | 1 . . 1 . . . . 3 . . . . . . . . . . . . . 1 . . . . 1 . 1 . 2 3 3 . Mechanic 2 | . . . . . . . . 1 . . . . . . . . . . . . . . . . . . . . . . 1 . . . Operator 5 | . . . . . . . 1 . . 1 . . . . . . . . . . . . . . . . . . 1 1 . . 1 . Watcher 8 | . 1 . . . . . . . . . . . . . . . . . . . . . . . . . . . . . 2 1 4 . Swarmer 19 | . 3 3 8 . . . . 2 . . . . . . . . . . . . . . . 1 . . . . . . . . 2 . Grunt 28 | . 4 4 7 . . 2 . 10 . . . . . . . . . . . . . . . . . . . . . . 1 . . . Brawler 1 | . . . . . . 1 . . . . . . . . . . . . . . . . . . . . . . . . . . . . Researcher 5 | . . . . . . . . . . . . . . . . . . . . . . . . . . . . 1 . . 4 . . . Sentry 9 | . . . 2 . . . 1 3 . . . . 1 . . . . . . . . . . . . . . . . . . . 2 . Hunter 4 | . . . . . . . . . . . . . . . . . . . . . . . . . . . . . . . . . 4 . Programmer 7 | . . . . . . . . . . . . . . . . . . . . . . . . . . . . . . 1 . . 6 . Enhanced Grunt 12 | . . . . . . . . . . . . . . . . . . . . . . . . . . . . . . . . . . 12 Enhanced Hunter 2 | . . . . . . . . . . . . . . . . . . . . . . . . . . . . . . . . . . 2 Wasp 2 | . . . . . . . . . . . . . . . . . . . . . . . . . . . . . . . . . 2 . Best Kill Streak 12 | 2 4 5 12 . . 3 1 9 . 1 . . 1 . . 1 1 . . . . 1 . 1 . . 2 1 1 2 5 2 7 6 Combat Bots Only 10 | . 3 5 10 . . 3 1 5 . . . . 1 . . . . . . . . . . 1 . . . . . 1 1 . 4 6 Max Kills in Single Turn 5 | 1 3 3 5 . . 1 1 2 . 1 . . 1 . . 1 1 . . . . 1 . 1 . . 1 1 1 1 1 1 1 2 Gunslinging . | . . . . . . . . . . . . . . . . . . . . . . . . . . . . . . . . . . . Exploded 4 | . 2 3 4 . . . . 1 . . . . 1 . . . . . . . . . . 1 . . . . . . . . . . Melee 1 | . . . . . . . . . . . . . . . . . . . . . . . . . . . . . . 1 1 . 1 . Uniques/NPCs Destroyed 6 | . . . . . . . . . . . . . 1 . . . . . . . . . . . . . . . . . . . 2 3 A7 (-6/Extension) MAIN.C Shell (-1/Command) MAIN.C (-1/Command) A6 (-1/Access_0) A5 (-1/Access_0) Architect (-1/Access_0) Combat | -11 -10 -10 -9 -9 -9 -8 -8 -8 -8 -6 -6 -6 -6 -6 -6 -6 -5 -5 -5 -5 -4 -4 -4 -4 -4 -3 -3 -3 -3 -2 -2 -1 -1 -1 -------- Run | Jun Mat Min Mat Min Exi Min Mat Sto Rec Fac Was Fac Ext Cet Arc Hub Fac Upp Upp War Pro Fac Upp Upp Zhi Pro Res Qua Sec Res Tes Acc Com Ac0 Damage Taken 8155 | . 100 151 396 31 . 81 216 1143 . 18 . . 725 52 49 244 57 102 . 873 61 . 26 182 . 64 203 130 333 216 101 13 1513 1075 Core 1167 | . 41 13 48 . . . . 81 . . . . 169 . 26 42 . . . 230 18 . . 99 . . 20 . 60 24 . . 78 218 Absorbed by Shields 1088 | . . . . . . . . . . . . . 49 . . . . . . . . . . . . . . . . . . . 483 556 Redirected to Shielding 208 | . . . . . . . . . . . . . 8 . . 31 . 14 . 53 . . . . . 57 25 20 . . . . . . Regen/Repaired (Parts) 2916 | . . . . . . . . . . . . . . . . . . . . 3 . . . . . . . 226 205 120 238 38 1807 279 Core Remaining (%) 81 | 100 . 78 . . . 88 . . 85 . . . . . . 72 . . . . 75 . . . . 91 . . 65 . 98 . . 65 Volleys Fired 266 | 6 14 5 24 . . 7 10 96 . 8 . . 2 . 11 3 . 1 . . . . . . . . . . . . . . 44 35 Largest 2 | 2 2 2 2 . . 2 2 2 . 2 . . 2 . 2 1 . 1 . . . . . . . . . . . . . . 1 2 Hottest 300 | 70 100 66 90 . . 90 90 90 . 50 . . 60 . 70 45 . . . . . . . . . . . . . . . . 100 300 Shots Fired 417 | 12 24 10 45 . . 14 19 165 . 14 . . 3 . 14 3 . 1 . . . . . . . . . . . . . . 44 49 Gun 315 | 12 12 . 26 . . 14 18 163 . 12 . . 2 . 14 3 . . . . . . . . . . . . . . . . 39 . Cannon 52 | . . . 3 . . . . . . . . . . . . . . . . . . . . . . . . . . . . . 3 46 Launcher 41 | . 8 10 16 . . . 1 2 . 2 . . 1 . . . . 1 . . . . . . . . . . . . . . . . Special 9 | . 4 . . . . . . . . . . . . . . . . . . . . . . . . . . . . . . . 2 3 Kinetic 174 | 6 6 . . . . . . 117 . 12 . . . . 11 2 . . . . . . . . . . . . . . . . 3 17 Thermal 89 | 6 10 . 3 . . . . . . . . . 2 . . . . . . . . . . . . . . . . . . . 39 29 Explosive 41 | . 8 10 16 . . . 1 2 . 2 . . 1 . . . . 1 . . . . . . . . . . . . . . . . Electromagnetic 108 | . . . 26 . . 14 18 46 . . . . . . 3 1 . . . . . . . . . . . . . . . . . . Robot Hit Streak 19 | 9 9 3 12 . . 4 6 13 . 2 . . 1 . 3 . . 4 . . . . . . . . . . . . . . 19 9 Robot Miss Streak 4 | 2 2 3 4 . . 2 2 4 . 3 . . 1 . 1 . . . . . . . . . . . . . . . . . 2 4 Penetration Max 1 | . . . . . . . . 1 . . . . . . . . . . . . . . . . . . . . . . . . . 1 Secondary Targets 5 | . . . 1 . . 2 . 2 . . . . . . . . . . . . . . . . . . . . . . . . . . Max Gunslinging Chain 1 | . . . 1 . . 1 . 1 . . . . . . . . . . . . . . . . . . . . . . . . . . Shots Hit Robots 441 | 9 12 3 31 . . 13 15 95 . 4 . . 2 . 6 . 1 1 . . . 3 . 2 6 . 3 1 4 7 24 9 148 42 Core Hits 264 | 3 15 11 33 . . 9 7 50 . 3 . . 6 . 2 1 1 . . . . 2 . . 3 . 2 1 2 3 7 4 58 41 Critical Kills 15 | 1 . . . . . . . . . . . . . . . . . . . . . . . . . . . . . . . . . 14 Critical Parts Destroyed 9 | . . . . . . . . . . . . . . . . . . . . . . . . . . . . . . . . . 1 8 Critical Strikes 34 | 1 2 . . . . . . 1 . . . . . . . . . . . . . . . . 2 . . . . . 2 . 2 24 Burn 2 | . 2 . . . . . . . . . . . . . . . . . . . . . . . . . . . . . . . . . Destroy 26 | 1 . . . . . . . 1 . . . . . . . . . . . . . . . . . . . . . . . . . 24 Smash 1 | . . . . . . . . . . . . . . . . . . . . . . . . . . . . . . . . . 1 . Sever 3 | . . . . . . . . . . . . . . . . . . . . . . . . . . . . . . . 2 . 1 . Impale 2 | . . . . . . . . . . . . . . . . . . . . . . . . . 2 . . . . . . . . . Melee Attacks 312 | . . . . . . . . . . . . . . . . 2 6 . . 5 . 9 1 3 8 . 9 14 13 21 41 30 146 4 Impact 3 | . . . . . . . . . . . . . . . . . . . . . . . . . . . . . . . . . 3 . Slashing 267 | . . . . . . . . . . . . . . . . . . . . . . . . . . . 1 14 13 21 41 30 143 4 Piercing 42 | . . . . . . . . . . . . . . . . 2 6 . . 5 . 9 1 3 8 . 8 . . . . . . . Sneak Attacks 48 | . . . . . . . . . . . . . . . . . 1 . . . . 3 . . . . 2 1 2 3 13 8 15 . Combat Hostiles 3 | . . . . . . . . . . . . . . . . . . . . . . . . . . . . . . . . . 3 . Follow-up Attacks 16 | . . . . . . . . . . . . . . . . . . . . . . . . . . . . . . . . . 16 . Damage Inflicted 28462 | 111 515 480 1997 4 . 202 230 2676 . 87 . . 144 . 105 125 51 87 . . . 250 . 2 331 . 259 140 542 921 3528 1523 12385 1767 Guns 4169 | 111 133 . 369 . . 202 230 2041 . 87 . . 8 . 105 . . . . . . . . . . . . . . . . . 883 . Cannons 1845 | . . . 60 . . . . . . . . . . . . . . 18 . . . . . . . . . . . . . . . 1767 Explosions 3347 | . 364 468 1562 . . . . 623 . . . . 136 . . 125 . 69 . . . . . . . . . . . . . . . . Melee 18820 | . . . . . . . . . . . . . . . . . 51 . . . . 250 . 2 331 . 259 140 542 921 3528 1523 11273 . Ramming 281 | . 18 12 6 4 . . . 12 . . . . . . . . . . . . . . . . . . . . . . . . 229 . Kinetic 1851 | 46 64 . . . . . . 1408 . 87 . . . . 51 . . . . . . . . . . . . . . . . . . 195 Thermal 3308 | 65 69 . 421 . . . . 290 . . . . 8 . . . . . . . . . . . . . . . . . . . 883 1572 Explosive 2571 | . 364 468 1201 . . . . 333 . . . . 136 . . . . 69 . . . . . . . . . . . . . . . . Electromagnetic 1613 | . . . 369 . . 202 230 633 . . . . . . 54 125 . . . . . . . . . . . . . . . . . . Impact 144 | . . . . . . . . . . . . . . . . . . 18 . . . . . . . . . . . . . . 126 . Slashing 17801 | . . . . . . . . . . . . . . . . . . . . . . . . . . . . 140 542 921 3528 1523 11147 . Piercing 893 | . . . . . . . . . . . . . . . . . 51 . . . . 250 . 2 331 . 259 . . . . . . . Highest Corruption 23 | . . . . . . . 1 12 12 . . . . . . 13 . . . 3 3 . . . . . . . . 4 1 . 23 1 Average Corruption 8 | . . . . . . . 1 8 12 . . . . . . 6 . . . 2 3 . . . . . . . . 3 1 . 9 1 Corruption Purged 43 | . . . . . . . . . . . . . . . . . . . . . . . . . . . . . . 4 1 . 38 . Corruption Blocked 25 | . . . . . . . . . . . . . . . . . . . . 15 . . . . . . . . . 10 . . . . Effects 106 | . . . . . . . 1 32 2 . . . . . . 1 . . . 1 2 . . . . . . . . 3 1 . 63 . Message Errors 31 | . . . . . . . . 10 . . . . . . . . . . . . 1 . . . . . . . . 1 1 . 18 . Matter Fused 23 | . . . . . . . . 5 1 . . . . . . . . . . . . . . . . . . . . 1 . . 16 . Heat Flow Errors 5 | . . . . . . . . 1 . . . . . . . . . . . . . . . . . . . . . . . . 4 . Energy Discharges 12 | . . . . . . . . 1 . . . . . . . . . . . . 1 . . . . . . . . . . . 10 . Parts Rejected 1 | . . . . . . . 1 . . . . . . . . . . . . . . . . . . . . . . . . . . . Data Loss (minor) 12 | . . . . . . . . 7 . . . . . . . . . . . . . . . . . . . . . 1 . . 4 . Data Loss (major) 7 | . . . . . . . . 2 1 . . . . . . . . . . 1 . . . . . . . . . . . . 3 . Misdirections 12 | . . . . . . . . 3 . . . . . . . 1 . . . . . . . . . . . . . . . . 8 . Weapon Failures 3 | . . . . . . . . 3 . . . . . . . . . . . . . . . . . . . . . . . . . . Overload Shots 22 | . . . . . . . . . . . . . . . . . . . . . . . . . . . . . . . . . . 22 Effects 1 | . . . . . . . . . . . . . . . . . . . . . . . . . . . . . . . . . . 1 Energy Bleed 1 | . . . . . . . . . . . . . . . . . . . . . . . . . . . . . . . . . . 1 Overflow Damage 4339 | . 48 . 106 . . . . 59 . . . . . . . 31 . . . . . 32 . . 110 . 35 . 98 165 1416 586 1613 40 Projectiles 40 | . . . . . . . . . . . . . . . . . . . . . . . . . . . . . . . . . . 40 Explosions 244 | . 48 . 106 . . . . 59 . . . . . . . 31 . . . . . . . . . . . . . . . . . . Melee 4055 | . . . . . . . . . . . . . . . . . . . . . . 32 . . 110 . 35 . 98 165 1416 586 1613 . Knockbacks 25 | . . . . . . . . . . . . . . . . . . . . . . . . . . . . . . . . . 22 3 Impact 22 | . . . . . . . . . . . . . . . . . . . . . . . . . . . . . . . . . 22 . Kinetic 3 | . . . . . . . . . . . . . . . . . . . . . . . . . . . . . . . . . . 3 Secondary . | . . . . . . . . . . . . . . . . . . . . . . . . . . . . . . . . . . . Self-Inflicted Damage 500 | . . 126 76 . . . . 46 . . . . 49 . . 203 . . . . . . . . . . . . . . . . . . Shots 11 | . . 5 2 . . . . 1 . . . . 1 . . 2 . . . . . . . . . . . . . . . . . . Rammed 7 | . . . 4 2 . . . 1 . . . . . . . . . . . . . . . . . . . . . . . . . . Targets Rammed 214 | . 6 1 4 2 . . . 1 . . . . . . . . . . . . . . . . . . . . . . . . 200 . Kicked 207 | . 6 1 . . . . . . . . . . . . . . . . . . . . . . . . . . . . . . 200 . Crushed . | . . . . . . . . . . . . . . . . . . . . . . . . . . . . . . . . . . . Highest Temperature 327 | 36 75 18 183 . . 177 38 136 . 59 37 81 102 . 24 61 . 1 . 1 . 44 146 7 52 4 161 . 208 156 219 145 327 56 Average Temperature 55 | 16 28 15 69 . . 93 29 34 . 25 16 28 38 . 7 31 . 1 . 1 . 9 56 7 29 2 48 . 34 48 64 51 79 27 Received Heat Transfer 1125 | . 36 18 126 . . 9 81 495 . . . . 135 . 9 . . . . 54 12 . 9 . . . 21 . 51 . 9 . 60 . Effects 4 | . . . . . . . . . . . . . . . . . . . . . . . . . . . . . . . 2 . 2 . Energy Bleed 1 | . . . . . . . . . . . . . . . . . . . . . . . . . . . . . . . . . 1 . Interference 3 | . . . . . . . . . . . . . . . . . . . . . . . . . . . . . . . 2 . 1 . Siege Activations . | . . . . . . . . . . . . . . . . . . . . . . . . . . . . . . . . . . . Robots Corrupted 1 | . . . 1 . . . . . . . . . . . . . . . . . . . . . . . . . . . . . . . Combat Hostiles . | . . . . . . . . . . . . . . . . . . . . . . . . . . . . . . . . . . . Parts Fried 8 | . . . 3 . . . . 3 . . . . . . . 2 . . . . . . . . . . . . . . . . . . Impact Corruptions 3 | . . . . . . . . . . . . . . . . . . . . . . . . . . . . . . . . . 3 . Robots Melted . | . . . . . . . . . . . . . . . . . . . . . . . . . . . . . . . . . . . Combat Hostiles . | . . . . . . . . . . . . . . . . . . . . . . . . . . . . . . . . . . . Parts Melted 5 | . 2 . 1 . . . . . . . . . . . . . . . . . . . . . . . . . . 2 . . . . Heat Transferred 1688 | 185 333 . 461 . . . . 150 . . . . 37 . . . . . . . . . . . . . . . . . . . 279 243 Parts Sabotaged . | . . . . . . . . . . . . . . . . . . . . . . . . . . . . . . . . . . . Parts Stolen 1 | . . . . . . . . . . . . . . . . . . . 1 . . . . . . . . . . . . . . . Parts Stripped . | . . . . . . . . . . . . . . . . . . . . . . . . . . . . . . . . . . . Power Chain Reactions 6 | . . . 2 . . . . 4 . . . . . . . . . . . . . . . . . . . . . . . . . . Missiles Intercepted . | . . . . . . . . . . . . . . . . . . . . . . . . . . . . . . . . . . . Alert | -11 -10 -10 -9 -9 -9 -8 -8 -8 -8 -6 -6 -6 -6 -6 -6 -6 -5 -5 -5 -5 -4 -4 -4 -4 -4 -3 -3 -3 -3 -2 -2 -1 -1 -1 ------- Run | Jun Mat Min Mat Min Exi Min Mat Sto Rec Fac Was Fac Ext Cet Arc Hub Fac Upp Upp War Pro Fac Upp Upp Zhi Pro Res Qua Sec Res Tes Acc Com Ac0 Peak Influence 860 | 15 341 344 860 265 . 70 137 666 419 654 243 253 634 369 147 217 148 . . . . 122 . . . . 400 291 366 633 731 253 763 . Initial 525 | . 9 66 133 265 . . 27 2 259 525 228 170 123 354 147 15 105 . . . . 9 . . . . 20 150 147 205 355 179 161 . Average 310 | 9 128 298 647 264 . 11 72 352 365 578 234 203 374 366 118 121 98 . . . . 45 . . . . 168 142 253 416 521 208 525 . Maximum Alert Level 3 | . 1 1 3 1 . . . 2 2 2 1 1 2 1 . 1 . . . . . . . . . . 2 1 1 2 3 1 3 . Low Security (%) 21 | 100 74 1 10 . . 100 100 20 . . . 53 10 . 100 61 100 . . . . 100 . . . . 59 82 27 . . 37 . . Level 1 19 | . 25 98 10 100 . . . 35 64 . 100 46 47 100 . 38 . . . . . . . . . . 38 17 72 47 15 62 6 . Level 2 56 | . . . 11 . . . . 43 35 100 . . 42 . . . . . . . . . . . . . 1 . . 52 77 . 92 . Level 3 2 | . . . 67 . . . . . . . . . . . . . . . . . . . . . . . . . . . 6 . . . Level 4 . | . . . . . . . . . . . . . . . . . . . . . . . . . . . . . . . . . . . Level 5 . | . . . . . . . . . . . . . . . . . . . . . . . . . . . . . . . . . . . High Security . | . . . . . . . . . . . . . . . . . . . . . . . . . . . . . . . . . . . Max Security . | . . . . . . . . . . . . . . . . . . . . . . . . . . . . . . . . . . . Squads Dispatched 40 | . 4 . 5 . . . 3 3 . 2 . 2 2 . . 1 1 . . . . . . . . . 1 1 . 4 3 1 7 . Investigation 23 | . 3 . 3 . . . 1 2 . 2 . 2 . . . 1 1 . . . . . . . . . . . . 3 2 . 3 . Extermination 3 | . . . . . . . . . . . . . . . . . . . . . . . . . . . . . . . . 1 2 . Reinforcement 13 | . 1 . 1 . . . 2 1 . . . . 2 . . . . . . . . . . . . . 1 1 . 1 1 . 2 . Assault 1 | . . . 1 . . . . . . . . . . . . . . . . . . . . . . . . . . . . . . . Garrison . | . . . . . . . . . . . . . . . . . . . . . . . . . . . . . . . . . . . Intercept . | . . . . . . . . . . . . . . . . . . . . . . . . . . . . . . . . . . . Searches Triggered 6 | . . . . . . . . . . . . . . . . . . . . . . . . . . . 1 . . . 1 . 4 . Construction Impeded 2 | . . . 1 . . . . 1 . . . . . . . . . . . . . . . . . . . . . . . . . . Haulers Reinforced 2 | . . . . . . . . . . . . . . . . . . . . . . . . . . . . . . 1 1 . . . Active Scanning Responses . | . . . . . . . . . . . . . . . . . . . . . . . . . . . . . . . . . . . Cargo Convoy Interrupts . | . . . . . . . . . . . . . . . . . . . . . . . . . . . . . . . . . . . Stealth | -11 -10 -10 -9 -9 -9 -8 -8 -8 -8 -6 -6 -6 -6 -6 -6 -6 -5 -5 -5 -5 -4 -4 -4 -4 -4 -3 -3 -3 -3 -2 -2 -1 -1 -1 --------- Run | Jun Mat Min Mat Min Exi Min Mat Sto Rec Fac Was Fac Ext Cet Arc Hub Fac Upp Upp War Pro Fac Upp Upp Zhi Pro Res Qua Sec Res Tes Acc Com Ac0 Distress Signals 39 | . 1 . 2 1 . . . 3 . . . . 2 1 . . 1 . . 1 . . . . . . 6 1 . 2 1 . 17 . Communications Jammed 11 | . . . . . . . . . . . . . . . . . . . . . . . . . . . . . . . . . 11 . Distress Signals 11 | . . . . . . . . . . . . . . . . . . . . . . . . . . . . . . . . . 11 . Times Spotted 416 | . 13 7 21 2 . 3 5 37 . 3 5 1 29 5 3 4 8 9 4 46 3 1 8 19 . 5 33 15 24 6 19 4 51 23 Peak Tracking Total 40 | . 4 5 7 2 . 3 2 7 . 2 5 1 16 5 3 4 8 6 2 40 3 5 6 10 . 5 18 9 10 2 7 3 9 11 Tactical Retreats 42 | . . . . . . . . 5 . . . . 5 . . . 1 . . . 1 . 3 4 . 1 5 2 . 2 6 1 4 2 Traps | -11 -10 -10 -9 -9 -9 -8 -8 -8 -8 -6 -6 -6 -6 -6 -6 -6 -5 -5 -5 -5 -4 -4 -4 -4 -4 -3 -3 -3 -3 -2 -2 -1 -1 -1 ------- Run | Jun Mat Min Mat Min Exi Min Mat Sto Rec Fac Was Fac Ext Cet Arc Hub Fac Upp Upp War Pro Fac Upp Upp Zhi Pro Res Qua Sec Res Tes Acc Com Ac0 Traps Triggered 6 | . 1 . . . . . . . . 1 . . 1 . . . . . . . . 1 . . . . . . . . 2 . . . Indirectly . | . . . . . . . . . . . . . . . . . . . . . . . . . . . . . . . . . . . Trap Hack Attempts . | . . . . . . . . . . . . . . . . . . . . . . . . . . . . . . . . . . . Triggered . | . . . . . . . . . . . . . . . . . . . . . . . . . . . . . . . . . . . Disarmed . | . . . . . . . . . . . . . . . . . . . . . . . . . . . . . . . . . . . Reprogrammed 4 | . . . . . . . . . . . . . . . . . . . . . . . . . . . . . 4 . . . . . Reused . | . . . . . . . . . . . . . . . . . . . . . . . . . . . . . . . . . . . Traps Extracted . | . . . . . . . . . . . . . . . . . . . . . . . . . . . . . . . . . . . Installed 5 | . . 5 . . . . . . . . . . . . . . . . . . . . . . . . . . . . . . . . Triggered 17 | . . . . . . . . . . . . . . . . . . . . 15 2 . . . . . . . . . . . . . Exploded 1 | . . . . . . . 1 . . . . . . . . . . . . . . . . . . . . . . . . . . . Machines | -11 -10 -10 -9 -9 -9 -8 -8 -8 -8 -6 -6 -6 -6 -6 -6 -6 -5 -5 -5 -5 -4 -4 -4 -4 -4 -3 -3 -3 -3 -2 -2 -1 -1 -1 ---------- Run | Jun Mat Min Mat Min Exi Min Mat Sto Rec Fac Was Fac Ext Cet Arc Hub Fac Upp Upp War Pro Fac Upp Upp Zhi Pro Res Qua Sec Res Tes Acc Com Ac0 Machines Disabled 46 | . 1 3 8 . . . 1 3 . 1 . . 1 . 1 6 . . . . . . . . . . . 5 4 . 7 . 1 4 Max in Single Turn 6 | . 1 2 6 . . . 1 1 . 1 . . . . 1 5 . . . . . . . . . . . 1 1 . 1 . 1 1 Garrison Access 4 | . . . . . . . . 1 . . . . . . . . . . . . . . . . . . . . . 2 . 1 . . Phase Generator 1 | . . . . . . . . . . . . . . . . . . . . . . . . . . . . . . . . . 1 . Network Hub 2 | . . . . . . . . . . . . . . . . 2 . . . . . . . . . . . . . . . . . . Machines Repaired . | . . . . . . . . . . . . . . . . . . . . . . . . . . . . . . . . . . . Machines Sabotaged . | . . . . . . . . . . . . . . . . . . . . . . . . . . . . . . . . . . . Overloaded Fab Kills . | . . . . . . . . . . . . . . . . . . . . . . . . . . . . . . . . . . . Hacking | -11 -10 -10 -9 -9 -9 -8 -8 -8 -8 -6 -6 -6 -6 -6 -6 -6 -5 -5 -5 -5 -4 -4 -4 -4 -4 -3 -3 -3 -3 -2 -2 -1 -1 -1 --------- Run | Jun Mat Min Mat Min Exi Min Mat Sto Rec Fac Was Fac Ext Cet Arc Hub Fac Upp Upp War Pro Fac Upp Upp Zhi Pro Res Qua Sec Res Tes Acc Com Ac0 Machines Accessed 95 | . 3 . 4 . 2 . 3 7 7 4 . 6 6 . . 1 5 . . 2 . 1 . . . . 4 5 3 3 11 7 11 . Terminals 63 | . 1 . 2 . . . 2 4 2 4 . 5 5 . . 1 2 . . . . 1 . . . . 3 5 3 . 7 6 10 . Fabricators 5 | . . . . . . . . . . . . 1 . . . . 2 . . . . . . . . . . . . 1 1 . . . Repair Stations 5 | . . . . . . . . 1 . . . . 1 . . . 1 . . . . . . . . . . . . . 1 . 1 . Recycling Units 11 | . 2 . 2 . . . 1 1 5 . . . . . . . . . . . . . . . . . . . . . . . . . Scanalyzers 4 | . . . . . . . . . . . . . . . . . . . . . . . . . . . 1 . . 1 2 . . . Garrison Access 3 | . . . . . . . . 1 . . . . . . . . . . . . . . . . . . . . . 1 . 1 . . Total Hacks 318 | . 7 . 9 . 2 . 4 11 12 11 . 14 10 . . 5 23 . . 2 . 8 . . . . 16 21 23 11 41 25 63 . Successful 127 | . 3 . 4 . 2 . 3 6 8 4 . 6 6 . . 2 4 . . 2 . 2 . . . . 5 10 9 4 18 9 20 . Failed 191 | . 4 . 5 . . . 1 5 4 7 . 8 4 . . 3 19 . . . . 6 . . . . 11 11 14 7 23 16 43 . Catastrophic 36 | . 1 . . . . . . 1 1 2 . . . . . 1 5 . . . . 2 . . . . 3 2 3 1 5 1 8 . Database Lockouts . | . . . . . . . . . . . . . . . . . . . . . . . . . . . . . . . . . . . Manual 130 | . 5 . 6 . 1 . 4 4 11 4 . 5 7 . . 5 10 . . . . 2 . . . . 2 9 13 6 10 . 26 . Terminals 242 | . 4 . 6 . . . 3 6 6 11 . 13 9 . . 5 9 . . . . 8 . . . . 11 21 23 . 27 23 57 . Fabricators 19 | . . . . . . . . . . . . 1 . . . . 8 . . . . . . . . . . . . 5 5 . . . Repair Stations 18 | . . . . . . . . 3 . . . . 1 . . . 6 . . . . . . . . . . . . . 2 . 6 . Recycling Units 14 | . 3 . 3 . . . 1 1 6 . . . . . . . . . . . . . . . . . . . . . . . . . Scanalyzers 14 | . . . . . . . . . . . . . . . . . . . . . . . . . . . 5 . . 2 7 . . . Garrison Access 7 | . . . . . . . . 1 . . . . . . . . . . . . . . . . . . . . . 4 . 2 . . Terminal Hacks 72 | . 1 . 2 . 2 . 1 3 2 3 . 2 3 . . 1 2 . . 2 . 2 . . . . 2 6 8 . 9 8 13 . Record 3 | . . . . . 1 . . . . . . . . . . . . . . 1 . . . . . . . . . . 1 . . . Part Schematic 3 | . . . . . . . . . . . . . . . . . . . . . . . . . . . . . 2 . 1 . . . Robot Schematic 1 | . . . . . . . . . . . . . . . . . . . . . . . . . . . . . 1 . . . . . Robot Analysis 1 | . 1 . . . . . . . . . . . . . . . . . . . . . . . . . . . . . . . . . Prototype ID Bank 8 | . . . . . . . . . . 1 . . . . . . . . . . . 1 . . . . . . 1 . 1 . 4 . Open Door 10 | . . . . . . . . 2 . . . 1 2 . . . . . . 1 . . . . . . . . . . . 3 1 . Level Access Points 3 | . . . . . . . . . . . . . . . . . . . . . . . . . . . . . 1 . . 1 1 . Branch Access Points 6 | . . . 1 . . . 1 1 . . . . . . . . 1 . . . . 1 . . . . 1 . . . . . . . Emergency Access Points 1 | . . . . . . . . . . . . . . . . . . . . . . . . . . . . . . . . . 1 . Machine Index 1 | . . . . . . . . . . . . . . . . . . . . . . . . . . . . . . . . 1 . . Terminal Index 5 | . . . . . . . . . . . . 1 1 . . 1 . . . . . . . . . . 1 . . . . . 1 . Recycling Unit Index 2 | . . . 1 . . . . . 1 . . . . . . . . . . . . . . . . . . . . . . . . . Alert Level 1 | . . . . . . . . . . . . . . . . . . . . . . . . . . . . . . . 1 . . . Unreport Threat 8 | . . . . . . . . . . . . . . . . . 1 . . . . . . . . . . 2 . . 4 1 . . Locate Traps 2 | . . . . . . . . . . . . . . . . . . . . . . . . . . . . 1 1 . . . . . Reprogram Traps 1 | . . . . . . . . . . . . . . . . . . . . . . . . . . . . . 1 . . . . . Patrol Status 4 | . . . . . . . . . . 2 . . . . . . . . . . . . . . . . . . . . . . 2 . Hauler Manifests 1 | . . . . . . . . . . . . . . . . . . . . . . . . . . . . . 1 . . . . . Zone Layout 9 | . . . . . . . . . 1 . . . . . . . . . . . . . . . . . . 3 . . 1 2 2 . EX-Prototype ID Bank 1 | . . . . . 1 . . . . . . . . . . . . . . . . . . . . . . . . . . . . . Disengage Seal 1 | . . . . . . . . . . . . . . . . . . . . . . . . . . . . . . . . . 1 . Fabricator Hacks 4 | . . . . . . . . . . . . 1 . . . . . . . . . . . . . . . . . 2 1 . . . Load Schematic 2 | . . . . . . . . . . . . . . . . . . . . . . . . . . . . . . 1 1 . . . Build 2 | . . . . . . . . . . . . 1 . . . . . . . . . . . . . . . . . 1 . . . . Repair Station Hacks 3 | . . . . . . . . 1 . . . . 1 . . . . . . . . . . . . . . . . . 1 . . . Scan Component 1 | . . . . . . . . 1 . . . . . . . . . . . . . . . . . . . . . . . . . . Refit 2 | . . . . . . . . . . . . . 1 . . . . . . . . . . . . . . . . . 1 . . . Recycling Unit Hacks . | . . . . . . . . . . . . . . . . . . . . . . . . . . . . . . . . . . . Scanalyzer 6 | . . . . . . . . . . . . . . . . . . . . . . . . . . . 2 . . . 4 . . . Insert Component 5 | . . . . . . . . . . . . . . . . . . . . . . . . . . . 2 . . . 3 . . . Analyze 1 | . . . . . . . . . . . . . . . . . . . . . . . . . . . . . . . 1 . . . Garrison Access Hacks 2 | . . . . . . . . 1 . . . . . . . . . . . . . . . . . . . . . . . 1 . . Seal Access 2 | . . . . . . . . 1 . . . . . . . . . . . . . . . . . . . . . . . 1 . . Unauthorized Hacks 40 | . 2 . 2 . . . 2 1 6 1 . 3 2 . . 1 2 . . . . . . . . . 1 4 1 2 3 . 7 . Terminals 25 | . . . . . . . 1 . 1 1 . 3 2 . . 1 . . . . . . . . . . 1 4 1 . 3 . 7 . Track 5 | . . . . . . . . . . . . . . . . . . . . . . . . . . . . 2 . . 1 . 2 . Assimilate 8 | . . . . . . . 1 . . 1 . 1 1 . . . . . . . . . . . . . . 1 . . 2 . 1 . Botnet 9 | . . . . . . . . . 1 . . 2 1 . . . . . . . . . . . . . 1 1 . . . . 3 . Operators 2 | . . . . . . . . . . . . . . . . . . . . . . . . . . . . . 1 . . . 1 . Sabotage 1 | . . . . . . . . . . . . . . . . 1 . . . . . . . . . . . . . . . . . . Fabricators 2 | . . . . . . . . . . . . . . . . . 2 . . . . . . . . . . . . . . . . . Fabnet 1 | . . . . . . . . . . . . . . . . . 1 . . . . . . . . . . . . . . . . . Haulers 1 | . . . . . . . . . . . . . . . . . 1 . . . . . . . . . . . . . . . . . Repair Stations . | . . . . . . . . . . . . . . . . . . . . . . . . . . . . . . . . . . . Recycling Units 11 | . 2 . 2 . . . 1 1 5 . . . . . . . . . . . . . . . . . . . . . . . . . Tunnel 11 | . 2 . 2 . . . 1 1 5 . . . . . . . . . . . . . . . . . . . . . . . . . Scanalyzers 1 | . . . . . . . . . . . . . . . . . . . . . . . . . . . . . . 1 . . . . Extract 1 | . . . . . . . . . . . . . . . . . . . . . . . . . . . . . . 1 . . . . Garrison Access 1 | . . . . . . . . . . . . . . . . . . . . . . . . . . . . . . 1 . . . . Jam 1 | . . . . . . . . . . . . . . . . . . . . . . . . . . . . . . 1 . . . . Data Cores Recovered 1 | . . . . . . . . . . . . . . . . . . . . . . . . . . . . . . . . . 1 . Used . | . . . . . . . . . . . . . . . . . . . . . . . . . . . . . . . . . . . Hacking Detections 66 | . 1 . 3 . . . 1 4 2 4 . 5 3 . . 1 4 . . . . 1 . . . . 3 5 3 2 9 4 11 . Full Trace Events 15 | . 1 . 1 . . . . 1 2 2 . 2 . . . . 1 . . . . . . . . . . . . 1 2 . 2 . Feedback Events . | . . . . . . . . . . . . . . . . . . . . . . . . . . . . . . . . . . . Feedback Blocked . | . . . . . . . . . . . . . . . . . . . . . . . . . . . . . . . . . . . Robot Schematics Acquired 7 | . . . . . . . . . . . . . . . . . . . . . . . . . . . . 2 1 . 4 . . . Robots Built . | . . . . . . . . . . . . . . . . . . . . . . . . . . . . . . . . . . . Authchips . | . . . . . . . . . . . . . . . . . . . . . . . . . . . . . . . . . . . Time . | . . . . . . . . . . . . . . . . . . . . . . . . . . . . . . . . . . . Total Robot Build Rating . | . . . . . . . . . . . . . . . . . . . . . . . . . . . . . . . . . . . Part Schematics Acquired 18 | . . . . . . . . . . . . . . . . . . . . . . . . . . . . 2 2 3 11 . . . Parts Built 2 | . . . . . . . . . . . . . . . . . . . . . . . . . . . . . . 2 . . . . Authchips . | . . . . . . . . . . . . . . . . . . . . . . . . . . . . . . . . . . . Time 137 | . . . . . . . . . . . . 106 . . . . . . . . . . . . . . . . . 31 . . . . Total Part Build Rating 10 | . . . . . . . . . . . . . . . . . . . . . . . . . . . . . . 10 . . . . Parts Repaired . | . . . . . . . . . . . . . . . . . . . . . . . . . . . . . . . . . . . Time . | . . . . . . . . . . . . . . . . . . . . . . . . . . . . . . . . . . . Parts Recycled . | . . . . . . . . . . . . . . . . . . . . . . . . . . . . . . . . . . . Recycled Matter . | . . . . . . . . . . . . . . . . . . . . . . . . . . . . . . . . . . . Retrieved Matter . | . . . . . . . . . . . . . . . . . . . . . . . . . . . . . . . . . . . Retrieved Components . | . . . . . . . . . . . . . . . . . . . . . . . . . . . . . . . . . . . Parts Scanalyzed 1 | . . . . . . . . . . . . . . . . . . . . . . . . . . . . . . . 1 . . . Part Schematics Acquired 1 | . . . . . . . . . . . . . . . . . . . . . . . . . . . . . . . 1 . . . Parts Damaged . | . . . . . . . . . . . . . . . . . . . . . . . . . . . . . . . . . . . Bothacking | -11 -10 -10 -9 -9 -9 -8 -8 -8 -8 -6 -6 -6 -6 -6 -6 -6 -5 -5 -5 -5 -4 -4 -4 -4 -4 -3 -3 -3 -3 -2 -2 -1 -1 -1 ------------ Run | Jun Mat Min Mat Min Exi Min Mat Sto Rec Fac Was Fac Ext Cet Arc Hub Fac Upp Upp War Pro Fac Upp Upp Zhi Pro Res Qua Sec Res Tes Acc Com Ac0 Used RIF Installer . | . . . . . . . . . . . . . . . . . . . . . . . . . . . . . . . . . . . Robots Hacked 2 | . . . . . . . . . . . . . . . . . . . . . . . 1 . . . . 1 . . . . . . Non-combat . | . . . . . . . . . . . . . . . . . . . . . . . . . . . . . . . . . . . Combat 2 | . . . . . . . . . . . . . . . . . . . . . . . 1 . . . . 1 . . . . . . Robot Hacks Applied . | . . . . . . . . . . . . . . . . . . . . . . . . . . . . . . . . . . . Relay Couplers Released 4 | . . . . . . . . . . . . . . . . . . . . . . . . . . . . . . 4 . . . . Machine Destruction 4 | . . . . . . . . . . . . . . . . . . . . . . . . . . . . . . 4 . . . . Fabnet Peak Effective % 3 | . . . . . . . . . . . . . . . . . . . . . 3 3 3 3 3 1 1 1 1 . . . . . Autooverrided 2 | . . . . . . . . . . . . . . . . . . . . . . . 1 . . . . 1 . . . . . . Robots Rewired . | . . . . . . . . . . . . . . . . . . . . . . . . . . . . . . . . . . . Allies Hacked . | . . . . . . . . . . . . . . . . . . . . . . . . . . . . . . . . . . . Hacks Repelled . | . . . . . . . . . . . . . . . . . . . . . . . . . . . . . . . . . . . Allies | -11 -10 -10 -9 -9 -9 -8 -8 -8 -8 -6 -6 -6 -6 -6 -6 -6 -5 -5 -5 -5 -4 -4 -4 -4 -4 -3 -3 -3 -3 -2 -2 -1 -1 -1 -------- Run | Jun Mat Min Mat Min Exi Min Mat Sto Rec Fac Was Fac Ext Cet Arc Hub Fac Upp Upp War Pro Fac Upp Upp Zhi Pro Res Qua Sec Res Tes Acc Com Ac0 Total Allies 27 | . . . . 1 . . . 10 . . 1 1 3 . . . . . . . . . 1 . . . . 2 . . 2 . 3 3 Largest Group 10 | . . . . 1 . . . 10 . . 1 1 3 . . . . . . . . . 1 . . . . 2 . . 1 1 2 1 Highest-Rated Group 320 | . . . . 31 . . . 173 . . 31 26 159 . . . . . . . . . 12 . . . . 86 . . 45 10 320 197 Highest-Rated Ally 197 | . . . . 31 . . . 29 . . 31 26 159 . . . . . . . . . 12 . . . . 64 . . 45 10 160 197 Total Orders 18 | . . . . . . . . 1 . . . . . . . . . . . . . . . . . . . . . . . . 16 1 STAY 3 | . . . . . . . . . . . . . . . . . . . . . . . . . . . . . . . . . 2 1 ROAM 8 | . . . . . . . . 1 . . . . . . . . . . . . . . . . . . . . . . . . 7 . FOLLOW 7 | . . . . . . . . . . . . . . . . . . . . . . . . . . . . . . . . . 7 . Ally Attacks 119 | . . . . 2 . . . 69 . . . . 24 . . . . . . . . . 2 . . . . 3 . . . . 17 2 Total Damage 2348 | . . . . 40 . . . 779 . . . . 1067 . . . . . . . . . 14 . . . . 154 . . . . 251 43 Kills 21 | . . . . . . . . 10 . . . . 8 . . . . . . . . . . . . . . . . . . . 3 . Allies Corrupted . | . . . . . . . . . . . . . . . . . . . . . . . . . . . . . . . . . . . Allies Melted 2 | . . . . . . . . . . . . . . . . . . . . 1 . . . . . . . . . 1 . . . . Field Lobotomies 5 | . . . . . . . . . . . . . . . . . . . . . . . . . . . . . . . . . 2 3 Intel | -11 -10 -10 -9 -9 -9 -8 -8 -8 -8 -6 -6 -6 -6 -6 -6 -6 -5 -5 -5 -5 -4 -4 -4 -4 -4 -3 -3 -3 -3 -2 -2 -1 -1 -1 ------- Run | Jun Mat Min Mat Min Exi Min Mat Sto Rec Fac Was Fac Ext Cet Arc Hub Fac Upp Upp War Pro Fac Upp Upp Zhi Pro Res Qua Sec Res Tes Acc Com Ac0 Robot Analysis Total 1 | . 1 . . . . . . . . . . . . . . . . . . . . . . . . . . . . . . . . . Derelict Logs Recovered 4 | . . 2 . . . . . . . . . . . . . . . . . . 1 . . 1 . . . . . . . . . . Drone Launches . | . . . . . . . . . . . . . . . . . . . . . . . . . . . . . . . . . . . Drone Recoveries . | . . . . . . . . . . . . . . . . . . . . . . . . . . . . . . . . . . . Exploration | -11 -10 -10 -9 -9 -9 -8 -8 -8 -8 -6 -6 -6 -6 -6 -6 -6 -5 -5 -5 -5 -4 -4 -4 -4 -4 -3 -3 -3 -3 -2 -2 -1 -1 -1 ------------- Run | Jun Mat Min Mat Min Exi Min Mat Sto Rec Fac Was Fac Ext Cet Arc Hub Fac Upp Upp War Pro Fac Upp Upp Zhi Pro Res Qua Sec Res Tes Acc Com Ac0 Turns Passed 14782 | 59 422 364 430 260 633 338 415 735 71 132 23 94 214 29 500 55 103 61 73 973 90 148 95 103 52 63 257 182 166 296 398 367 6344 237 Spaces Moved 19753 | 20 260 253 204 157 390 161 227 424 238 301 85 256 366 103 29 143 261 220 270 959 181 202 304 383 122 246 665 523 417 744 867 933 8184 655 Core 72 | . . . . . . . . . . . . . . . . . . . . . 1 . . . . . . . . . . . 71 . Treads 1330 | . . 81 204 157 390 161 227 110 . . . . . . . . . . . . . . . . . . . . . . . . . . Legs 612 | 20 260 172 . . . . . . . . . . . . . . . . . . . . . . . . . . . . . . 160 . Wheels . | . . . . . . . . . . . . . . . . . . . . . . . . . . . . . . . . . . . Hover . | . . . . . . . . . . . . . . . . . . . . . . . . . . . . . . . . . . . Flight 17739 | . . . . . . . . 314 238 301 85 256 366 103 29 143 261 220 270 959 180 202 304 383 122 246 665 523 417 744 867 933 7953 655 Fastest Speed 8 | 120 120 120 160 160 160 160 160 29 29 23 23 23 23 26 26 24 25 25 25 25 27 22 22 25 25 22 15 19 19 20 13 14 13 8 Average Speed 44 | 120 120 132 160 160 160 160 160 65 29 23 23 23 23 26 47 25 26 25 25 25 27 25 24 25 25 24 19 19 22 20 17 19 47 12 Slowest Speed 800 | 120 120 160 160 160 160 160 160 240 29 23 23 23 26 26 96 27 30 25 27 27 100 30 25 27 25 25 96 96 24 97 98 20 800 13 Overloaded Moves 656 | . . . . . . . . . . . . . . . . . . . . . . . . . . . . . . . . . 2 654 Propulsion Burnouts . | . . . . . . . . . . . . . . . . . . . . . . . . . . . . . . . . . . . Robots Hopped 115 | . . . . . . . . 8 3 9 5 7 13 2 . . 2 . 2 5 . 1 . 1 . . 14 10 2 . 10 2 18 1 Cave-ins Triggered . | . . . . . . . . . . . . . . . . . . . . . . . . . . . . . . . . . . . Teleports 6 | . . . . . . . . . . . . . . . . . . . . . . . . . . . 1 . 3 . . . 1 1 Exploration Rate (%) 44 | 3 51 65 27 29 69 22 21 73 67 12 73 9 72 48 49 21 14 59 60 90 44 4 51 56 56 48 24 67 33 29 88 18 77 44 Regions Visited 34 Branch Regions 23 Pre-discovered Areas 15 | . 2 2 2 . 1 . 1 1 5 . . . . . . . . . . . . . . 1 . . . . . . . . . . Known Exits Taken 10 | . . . 1 . . . 1 1 . . . . . . . . 1 . . . . 1 . . . . 1 . 1 1 1 1 . . Unknown Exits Taken 22 | 1 1 1 . 1 1 1 . . 1 . . 1 1 1 1 1 . 1 1 1 1 . 1 1 1 1 . 1 . . . . 1 . Scrap Searched 7 | . . 1 . . . . . . . . . . . . . . . . 1 . 1 . 1 1 . 2 . . . . . . . . Spaces Dug 114 | . 24 . . . . . 9 . . . . . . . . 2 5 . . 2 . 5 1 . . . 6 8 3 11 10 17 11 . Terrain Destroyed 761 | . 77 75 105 . . . 9 19 . 15 . . 11 . . 338 5 4 . 2 . 5 1 . . . 6 8 3 11 10 17 13 27 Melee 81 | . . . . . . . . . . . . . . . . 2 5 . . 2 . 5 1 . . . 6 8 3 11 10 17 11 . Projectile 9 | . 3 . . . . . . . . . . . . . . . . . . . . . . . . . . . . . . . . 6 AOE 648 | . 74 75 105 . . . 9 19 . 15 . . 11 . . 336 . 4 . . . . . . . . . . . . . . . . Terrain Rammed . | . . . . . . . . . . . . . . . . . . . . . . . . . . . . . . . . . . . Walls Destroyed . | . . . . . . . . . . . . . . . . . . . . . . . . . . . . . . . . . . . Machines Disabled . | . . . . . . . . . . . . . . . . . . . . . . . . . . . . . . . . . . . Actions | -11 -10 -10 -9 -9 -9 -8 -8 -8 -8 -6 -6 -6 -6 -6 -6 -6 -5 -5 -5 -5 -4 -4 -4 -4 -4 -3 -3 -3 -3 -2 -2 -1 -1 -1 --------- Run | Jun Mat Min Mat Min Exi Min Mat Sto Rec Fac Was Fac Ext Cet Arc Hub Fac Upp Upp War Pro Fac Upp Upp Zhi Pro Res Qua Sec Res Tes Acc Com Ac0 Total 24888 | 43 338 273 261 166 402 227 260 731 236 345 82 285 476 102 505 155 282 225 270 1675 219 285 323 388 134 246 761 571 462 846 1029 1062 10463 760 Wait 3646 | 10 40 . 3 5 . 58 8 167 . 22 2 30 103 . 462 . 9 3 3 696 35 58 19 1 . . 49 11 4 51 51 76 1639 31 Move 19502 | 19 259 252 203 156 389 160 226 408 231 283 76 241 342 98 28 142 256 219 265 952 180 199 303 380 121 245 636 502 412 743 849 928 8147 652 Hop 102 | . . . . . . . . 7 3 9 3 7 10 2 . . 2 . 2 1 . 1 . 1 . . 14 10 2 . 7 2 18 1 Pick Up 113 | 1 4 2 5 . 6 1 4 11 2 2 1 1 . . . 1 2 . . 4 . . . . 2 . 5 8 5 2 6 1 35 2 Fast Attach 217 | 2 3 . 8 . . 1 2 10 . 5 . . 1 . . 1 3 . . 6 1 7 . 1 3 1 21 6 9 14 19 9 83 1 Attach 109 | . . 3 . 1 2 . 4 7 . 8 . 2 . 1 2 5 2 2 . 3 2 . . . . . 3 7 5 2 2 5 26 15 Detach 107 | . 2 . 2 1 . . . 3 . 3 . 4 2 1 2 . 2 . . 4 . . . . 1 . 5 7 4 6 10 6 30 12 Swap 45 | 1 3 1 3 . . . 2 5 . 2 . . 2 . . 1 . . . . 1 1 . 2 . . 1 2 . . 2 1 14 1 Drop 241 | 4 7 4 9 1 5 . 4 16 . 3 . . 2 . . . . . . 5 . 1 . . 1 . 18 4 8 7 24 7 105 6 Fire 266 | 6 14 5 24 . . 7 10 96 . 8 . . 2 . 11 3 . 1 . . . . . . . . . . . . . . 44 35 Melee 278 | . . . . . . . . . . . . . . . . 2 6 . . 4 . 8 1 3 6 . 9 14 13 21 41 27 119 4 Ram . | . . . . . . . . . . . . . . . . . . . . . . . . . . . . . . . . . . . Kick 207 | . 6 1 . . . . . . . . . . . . . . . . . . . . . . . . . . . . . . 200 . Crush 7 | . . . 4 2 . . . 1 . . . . . . . . . . . . . . . . . . . . . . . . . . Escape Stasis 40 | . . . . . . . . . . . . . 12 . . . . . . . . 10 . . . . . . . . 18 . . . Rewire 3 | . . . . . . . . . . . . . . . . . . . . . . . . . . . . . . . . . 3 . Trap 5 | . . 5 . . . . . . . . . . . . . . . . . . . . . . . . . . . . . . . . Miscellaneous . | . . . . . . . . . . . . . . . . . . . . . . . . . . . . . . . . . . . Route ------- -11/Junkyard -10/Materials (discovered 2 exits: *Mat / [*Min]) -10/Mines (discovered 2 exits: *Mat x2) -9/Materials -9/Mines -9/Exiles -8/Mines -8/Materials -8/Storage (discovered 2 exits: [*Fac] / *Rec) -8/Recycling -6/Factory -6/Waste -6/Factory -6/Extension (discovered 2 exits: *Fac / [*Cet]) -6/Cetus -6/Archives -6/Hub_04(d) -5/Factory (discovered 2 exits: *Upp x2) -5/Upper Caves -5/Upper Caves -5/Warlord -4/Proximity Caves -4/Factory (discovered 3 exits: *Upp x2 / Arm) -4/Upper Caves -4/Upper Caves (discovered 2 exits: Res / [*Zhi]) -4/Zhirov -3/Proximity Caves -3/Research (discovered 4 exits: *Res x2 / *Qua x2) -3/Quarantine (discovered 2 exits: *Res / *Sec) -3/Section 7 -2/Research -2/Testing -1/Access (discovered 2 exits: Sur / *Com) -1/Command (discovered 3 exits: *Sur x2 / [*Ac0]) -1/Access_0 Near Former Tau Ceti IV History --------- Turn | Location | Event 15 | -11/Junkyard | Discovered new exit (range 3) 60 | -11/Junkyard | Entered Materials 309 | -10/Materials | Build established: Mutant 383 | -10/Materials | Discovered new exit (range 12) 474 | -10/Materials | Discovered new exit (range 6) 482 | -10/Materials | Entered Mines 524 | -10/Mines | Found a hidden stash of uninstalled traps 586 | -10/Mines | Received a Rocket Launcher from a helpful Derelict 708 | -10/Mines | Found a damaged Exp. Sensor Array with a note attached 717 | -10/Mines | Found Prototype Device 774 | -10/Mines | Discovered new exit (range 9) 784 | -10/Mines | Discovered new exit (range 16) 808 | -10/Mines | Learned location of Recycling (-8) 846 | -10/Mines | Entered Materials 846 | -9/Materials | Evolved 2 slots: Power x1, Propulsion x1 856 | -9/Materials | Identified exit to Mines 978 | -9/Materials | Destroyed 10 combat bots 1246 | -9/Materials | First assault squad dispatched 1276 | -9/Materials | Entered Mines 1279 | -9/Mines | Received a Mining Laser from a helpful Derelict 1319 | -9/Mines | Deemed a non-threat by the Exiles lab entrance 1320 | -9/Mines | Discovered new exit (range 5) 1331 | -9/Mines | Identified Exp. Sensor Array 1477 | -9/Mines | Assembled infested the area 1536 | -9/Mines | Entered Exiles 1579 | -9/Exiles | Met 8R-AWN 1603 | -9/Exiles | Met EX-HEX 1664 | -9/Exiles | Met EX-DEC 1693 | -9/Exiles | Learned location of Zion (-6) 1733 | -9/Exiles | Met EX-BIN 1751 | -9/Exiles | Aligned with FarCom system 1752 | -9/Exiles | Given EX-Vault access code 1795 | -9/Exiles | Opened EX-Vault 1805 | -9/Exiles | Found Field Lobotomy Kit 1813 | -9/Exiles | Found Lightpack 2.0 1846 | -9/Exiles | Warned to stay clear of 0b10 Research branches 2013 | -9/Exiles | Found Latent Energy Streamer 2157 | -9/Exiles | Discovered new exit (range 10) 2169 | -9/Exiles | Stole three prototypes: Field Lobotomy Kit, Lightpack 2.0, Latent Energy Streamer 2169 | -9/Exiles | Entered Mines 2494 | -8/Mines | Discovered new exit (range 9) 2507 | -8/Mines | Entered Materials 2507 | -8/Materials | Evolved 2 slots: Utility x2 2768 | -8/Materials | Identified exit to Storage 2922 | -8/Materials | Entered Storage 3157 | -8/Storage | System corruption reached 10% 3343 | -8/Storage | Lost 4 parts (1p1n2u) 3443 | -8/Storage | Discovered new exit (range 16) 3509 | -8/Storage | Assisted by bots powering up and referring to "LRC-V3" 3617 | -8/Storage | Identified exit to Recycling 3656 | -8/Storage | Used back door to open Recycling access 3657 | -8/Storage | Entered Recycling 3659 | -8/Recycling | Found Scrap Engine 3724 | -8/Recycling | Discovered new exit (range 13) 3728 | -8/Recycling | Entered Factory 3728 | -6/Factory | Evolved 4 slots: Propulsion x2, Utility x2 3730 | -6/Factory | FarCom data flow suspended 3743 | -6/Factory | Discovered new exit (range 15) 3860 | -6/Factory | Manually triggered Chute Trap 3860 | -6/Factory | Sucked down chute 3860 | -6/Factory | Entered Waste 3861 | -6/Waste | Met a frightened Derelict 3863 | -6/Waste | Spotted C-40 Crusher 3866 | -6/Waste | Spotted C-40 Crusher 3866 | -6/Waste | Found Prototype Device 3872 | -6/Waste | Spotted C-40 Crusher 3872 | -6/Waste | Spotted C-40 Crusher 3875 | -6/Waste | Build established: Hauler-Sprinter 3875 | -6/Waste | Spotted C-40 Crusher 3876 | -6/Waste | Discovered new exit (range 12) 3876 | -6/Waste | Spotted C-40 Crusher 3883 | -6/Waste | Entered Factory 3965 | -6/Factory | Discovered new exit (range 6) 3977 | -6/Factory | Entered Extension 3977 | -6/Extension | Accompanied by 1 ally 3999 | -6/Extension | Rescued a captive Derelict 4012 | -6/Extension | Rescued a captive Derelict 4034 | -6/Extension | Spotted B-75 Beast 4036 | -6/Extension | Spotted B-75 Beast 4073 | -6/Extension | Rescued A7 4163 | -6/Extension | Allies destroyed A7 4189 | -6/Extension | Discovered new exit (range 9) 4189 | -6/Extension | Discovered new exit (range 6) 4191 | -6/Extension | Entered Cetus 4195 | -6/Cetus | Spotted Cetus Guard 4196 | -6/Cetus | Spotted Cetus Guard 4197 | -6/Cetus | Spotted Cetus Guard 4205 | -6/Cetus | Spotted Cetus Guard 4216 | -6/Cetus | Discovered new exit (range 15) 4220 | -6/Cetus | Entered Archives 4529 | -6/Archives | Build established: Hauler-Mutant 4717 | -6/Archives | Discovered new exit (range 13) 4720 | -6/Archives | Entered Hub_04(d) 4720 | -6/Hub_04(d) | Discovered new exit (range 10) 4740 | -6/Hub_04(d) | Network Hub disabled 4754 | -6/Hub_04(d) | Network Hub disabled 4762 | -6/Hub_04(d) | System corruption reached 10% 4771 | -6/Hub_04(d) | Spotted Lightning 4774 | -6/Hub_04(d) | Spotted Lightning 4775 | -6/Hub_04(d) | Spotted Lightning 4775 | -6/Hub_04(d) | Entered Factory 4775 | -5/Factory | Evolved 2 slots: Propulsion x1, Utility x1 4785 | -5/Factory | Lost 4 parts (1p1n2u) 4847 | -5/Factory | Identified exit to Upper Caves 4878 | -5/Factory | Entered Upper Caves 4878 | -5/Upper Caves | Spotted LO-3OW(f) 4878 | -5/Upper Caves | Spotted XH-DMM(f) 4879 | -5/Upper Caves | Encountered a Master Thief 4879 | -5/Upper Caves | Encountered a Master Thief 4917 | -5/Upper Caves | Spotted B-75 Beast 4926 | -5/Upper Caves | Attracted the attention of an 0b10 checkpoint 4936 | -5/Upper Caves | Discovered new exit (range 15) 4939 | -5/Upper Caves | Entered another Upper Caves area 4939 | -5/Upper Caves | Spotted MX-8IW(f) 4939 | -5/Upper Caves | Spotted T1-K2M(f) 4940 | -5/Upper Caves | Encountered a Master Thief 4940 | -5/Upper Caves | Encountered a Master Thief 4940 | -5/Upper Caves | Lightpack 2.0 stolen by Master Thief 5011 | -5/Upper Caves | Discovered new exit (range 3) 5012 | -5/Upper Caves | Encountered a Warlord checkpoint 5012 | -5/Upper Caves | Entered Warlord 5194 | -5/Warlord | Met Warlord 5211 | -5/Warlord | Found Prototype Processor 5211 | -5/Warlord | Identified Exp. Targeting Computer 5214 | -5/Warlord | Found Prototype Processor 5214 | -5/Warlord | Identified Exp. Core Analyzer 5218 | -5/Warlord | Found Prototype Device 5218 | -5/Warlord | Identified Exp. Focal Shield 5219 | -5/Warlord | Warlord's base attacked by MAIN.C 5244 | -5/Warlord | Build established: Sprinter 5569 | -5/Warlord | Warlord forces counterattacked 5894 | -5/Warlord | Warlord base infiltrated, sounded retreat 5895 | -5/Warlord | Enhanced Grunt warped into view 5895 | -5/Warlord | Enhanced Grunt warped into view 5895 | -5/Warlord | Enhanced Grunt warped into view 5895 | -5/Warlord | Enhanced Demolisher warped into view 5895 | -5/Warlord | Enhanced Demolisher warped into view 5895 | -5/Warlord | Enhanced Demolisher warped into view 5924 | -5/Warlord | Found Exp. Core Analyzer 5950 | -5/Warlord | Spotted Executioner 5958 | -5/Warlord | Spotted Striker 5971 | -5/Warlord | Spotted Striker 5972 | -5/Warlord | Spotted Striker 5972 | -5/Warlord | Spotted B-75 Beast 5974 | -5/Warlord | Spotted Executioner 5975 | -5/Warlord | Spotted B-86 Titan 5982 | -5/Warlord | Discovered new exit (range 14) 5985 | -5/Warlord | Entered Proximity Caves 6013 | -4/Proximity Caves | Lost 7 parts (2p1n4u) 6062 | -4/Proximity Caves | Learned location of 1 exit from Research 6068 | -4/Proximity Caves | Discovered new exit (range 7) 6075 | -4/Proximity Caves | Entered Factory 6075 | -4/Factory | Evolved 2 slots: Propulsion x2 6116 | -4/Factory | Identified exit to Upper Caves 6116 | -4/Factory | Identified exit to Armory 6223 | -4/Factory | Entered Upper Caves 6317 | -4/Upper Caves | Discovered new exit (range 6) 6318 | -4/Upper Caves | Entered another Upper Caves area 6345 | -4/Upper Caves | Discovered new exit (range 15) 6397 | -4/Upper Caves | Spotted UW-CO9(f) 6402 | -4/Upper Caves | Spotted 4Z-XEJ(f) 6402 | -4/Upper Caves | Spotted JZ-X1V(f) 6402 | -4/Upper Caves | Spotted G3-ALK(f) 6403 | -4/Upper Caves | Encountered a Master Thief 6403 | -4/Upper Caves | Encountered a Master Thief 6403 | -4/Upper Caves | Encountered a Master Thief 6404 | -4/Upper Caves | Encountered a Master Thief 6406 | -4/Upper Caves | Spotted 03-6NB(f) 6407 | -4/Upper Caves | Encountered a Master Thief 6419 | -4/Upper Caves | Discovered new exit (range 8) 6421 | -4/Upper Caves | Entered Zhirov 6421 | -4/Zhirov | Discovered new exit (range 3) 6426 | -4/Zhirov | Met Zhirov 6433 | -4/Zhirov | Found Alien Artifact 6433 | -4/Zhirov | Identified Integrated Reactor 6433 | -4/Zhirov | Installed Integrated Reactor, increased core energy generation (+10) 6463 | -4/Zhirov | Found Alien Artifact 6473 | -4/Zhirov | Entered Proximity Caves 6495 | -3/Proximity Caves | Spotted B-86 Titan 6531 | -3/Proximity Caves | Discovered new exit (range 15) 6536 | -3/Proximity Caves | Entered Research 6536 | -3/Research | Evolved 2 slots: Utility x2 6537 | -3/Research | Identified exit to Research 6548 | -3/Research | Found Prototype Processor 6550 | -3/Research | Identified Spectral Analyzer 6550 | -3/Research | Identified Transdimensional Reconstructor 6602 | -3/Research | Found Prototype Device 6602 | -3/Research | Identified Exp. Thermal Shield 6681 | -3/Research | Discovered exit to Research (range 10) 6692 | -3/Research | Identified exit to Quarantine 6697 | -3/Research | Warped through subspace 6786 | -3/Research | Search patrols dispatched 6788 | -3/Research | Spotted B-90 Cyclops 6793 | -3/Research | Entered Quarantine 6801 | -3/Quarantine | Found Alien Artifact 6801 | -3/Quarantine | Identified Phase Armor 6817 | -3/Quarantine | Found Antimissile System 6852 | -3/Quarantine | Found Transdimensional Reconstructor 6856 | -3/Quarantine | Found Transdimensional Reconstructor 6857 | -3/Quarantine | Found Alien Artifact 6858 | -3/Quarantine | Found Alien Artifact 6884 | -3/Quarantine | Found Alien Artifact 6890 | -3/Quarantine | Identified Core Reset Matrix 6890 | -3/Quarantine | Identified Hpw. Transdimensional Reconstructor (x2) 6890 | -3/Quarantine | Used Core Reset Matrix 6894 | -3/Quarantine | Detected hypermatrix surge 6894 | -3/Quarantine | Sensed 11 artifacts in vicinity 6903 | -3/Quarantine | Found Sigix Broadsword 6921 | -3/Quarantine | Found Subatomic Replicator 6950 | -3/Quarantine | Discovered exit to Research (range 13) 6962 | -3/Quarantine | Spotted Fortress 6975 | -3/Quarantine | Discovered new exit (range 5) 6975 | -3/Quarantine | Entered Section 7 6976 | -3/Section 7 | Sensed 21 artifacts in vicinity 6980 | -3/Section 7 | Found Integrity Redistributor 6990 | -3/Section 7 | Found Integrated Mediator 6990 | -3/Section 7 | Installed Integrated Mediator, increased core attachment efficiency. 7003 | -3/Section 7 | Found Prototype Hackware 7008 | -3/Section 7 | Found Unknown Device 7008 | -3/Section 7 | Identified Quantum Capacitor 7010 | -3/Section 7 | Identified Exp. System Shield 7015 | -3/Section 7 | Spotted B-86 Titan 7023 | -3/Section 7 | Warped through subspace 7024 | -3/Section 7 | Warped through subspace 7045 | -3/Section 7 | Build established: Hacker-Sprinter 7062 | -3/Section 7 | Spotted Alpha 7 7063 | -3/Section 7 | Spotted Alpha 7 7070 | -3/Section 7 | Warped through subspace 7071 | -3/Section 7 | Used Subatomic Replicator to create Supercharged Integrated Reactor 7072 | -3/Section 7 | Installed Supercharged Integrated Reactor, increased core energy generation (+15) 7105 | -3/Section 7 | Spotted S7 Guard 7141 | -3/Section 7 | Entered Research 7141 | -2/Research | Warlord forces began assault on 0b10 7141 | -2/Research | Evolved 2 slots: Utility x1, Weapon x1 7151 | -2/Research | Spotted B-90 Cyclops 7178 | -2/Research | Fabricated Weapon Mount? 7251 | -2/Research | Research machine network offline 7341 | -2/Research | Found Prototype Processor 7341 | -2/Research | Identified Exp. Signal Interpreter 7389 | -2/Research | Met up with Warlord 7426 | -2/Research | Discovered new exit (range 5) 7427 | -2/Research | Identified exit to Testing 7437 | -2/Research | Entered Testing 7499 | -2/Testing | Build established: Alien-Sprinter 7527 | -2/Testing | Found Prototype Energy Cannon 7527 | -2/Testing | Identified Hpw. Disruptor Cannon 7611 | -2/Testing | Found Prototype Energy Cannon 7611 | -2/Testing | Identified Cld. Nova Cannon 7623 | -2/Testing | Spotted PG-HOGTMN7NC3 7650 | -2/Testing | Found Prototype Processor 7651 | -2/Testing | Found Prototype Device 7656 | -2/Testing | Identified Exp. Force Field 7675 | -2/Testing | Found Prototype Energy Gun 7675 | -2/Testing | Identified Hyp. EM Gauss Rifle 7687 | -2/Testing | Search patrols dispatched 7711 | -2/Testing | Found Prototype Device 7730 | -2/Testing | Spotted Striker 7740 | -2/Testing | Found Prototype Ballistic Cannon 7740 | -2/Testing | Identified Perforator 7747 | -2/Testing | Spotted Striker 7797 | -2/Testing | Discovered new exit (range 13) 7819 | -2/Testing | Identified exit to Access 7835 | -2/Testing | Entered Access 7835 | -1/Access | Accompanied by 1 ally 7835 | -1/Access | Evolved 2 slots: Utility x1, Weapon x1 7845 | -1/Access | Spotted B-99 Colossus 7935 | -1/Access | Identified exit to Surface 8052 | -1/Access | Identified Beam Splitter 8056 | -1/Access | Found Prototype Device 8056 | -1/Access | Identified Exp. ECM Suite 8140 | -1/Access | Build established: Alien-Ninja 8189 | -1/Access | Discovered new exit (range 7) 8196 | -1/Access | Identified exit to Command 8202 | -1/Access | Entered Command 8202 | -1/Command | Accompanied by 1 ally 8208 | -1/Command | Found Prototype Processor 8250 | -1/Command | Found Spectral Analyzer 8326 | -1/Command | Spotted M Guard 8326 | -1/Command | Spotted M Guard 8326 | -1/Command | Spotted Combat Programmer 8326 | -1/Command | Spotted Combat Programmer 8410 | -1/Command | Spotted Executioner 8425 | -1/Command | Spotted B-99 Colossus 8482 | -1/Command | Search patrols dispatched 8514 | -1/Command | Identified Exp. Core Analyzer 8585 | -1/Command | Spotted B-99 Colossus 8699 | -1/Command | Found Exp. Force Field 8702 | -1/Command | Search patrols dispatched 8707 | -1/Command | Disengaged cave seal 8707 | -1/Command | Derelicts emerged from the dark tunnel 8707 | -1/Command | Welcomed Warlord to Command 8842 | -1/Command | Build established: Alien-Sprinter 8988 | -1/Command | P-80 Master assimilated allied 85-HDH(K) 8989 | -1/Command | Spotted 85-HDH(K) 8996 | -1/Command | Search patrols dispatched 9050 | -1/Command | Assimilated Combat Programmer with FLK Orb 9056 | -1/Command | Assimilated Combat Programmer with FLK Orb 9072 | -1/Command | Phase Generator disabled 9105 | -1/Command | Allies destroyed M Guard 9108 | -1/Command | Found Corrupted Prototype Device 9108 | -1/Command | Identified AEGIS Remote Shield 9114 | -1/Command | System corruption reached 10% 9121 | -1/Command | Found Corrupted Prototype Reactor 9123 | -1/Command | Found Corrupted AEGIS Remote Shield 9124 | -1/Command | Identified Zero-point Reactor 9128 | -1/Command | Found Corrupted Cld. Nova Cannon 9154 | -1/Command | Warlord commented on Warlord statues 9202 | -1/Command | Search patrols dispatched 9323 | -1/Command | Build established: Scavenger-Sprinter 9326 | -1/Command | Met MAIN.C 9349 | -1/Command | 0b10 Conduit disabled 9352 | -1/Command | Warlord shut down involuntarily 9354 | -1/Command | Warlord shut down involuntarily 9392 | -1/Command | Destroyed MAIN.C Shell 9393 | -1/Command | MAIN.C activated Command garrisons 9412 | -1/Command | All MAIN.C guards destroyed 9435 | -1/Command | Destroyed MAIN.C 9436 | -1/Command | Discovered exit to Surface (range 37) 9436 | -1/Command | Discovered exit to Surface (range 80) 9436 | -1/Command | Extracted map data and part IDs from MAIN.C's data core 9451 | -1/Command | Found Exp. Powered Armor 9452 | -1/Command | Found Exp. Powered Armor 9454 | -1/Command | Found Zero-point Reactor 9459 | -1/Command | Found Zero-point Reactor 9511 | -1/Command | Found Exp. System Purifier 9727 | -1/Command | Found Zero-point Reactor 10349 | -1/Command | Build established: Alien-Gladiator 11663 | -1/Command | Build established: Scavenger-Mutant 11851 | -1/Command | Found Exp. Force Field 11860 | -1/Command | Found Z-bomb Delivery System 12177 | -1/Command | Build established: Alien-Mutant 12489 | -1/Command | Attacked by Warlord forces 12936 | -1/Command | Found Exp. Powered Armor 13044 | -1/Command | Used Integrity Redistributor, redistributed integrity from core (-116) 14235 | -1/Command | Found Exp. Core Analyzer 14404 | -1/Command | Found Exp. Targeting Computer 14542 | -1/Command | Warped through subspace to slip node 14542 | -1/Command | Discovered new exit (range 4) 14546 | -1/Command | Entered Access_0 14547 | -1/Access_0 | Sensed 4 artifacts in vicinity 14547 | -1/Access_0 | Met Architect 14579 | -1/Access_0 | Subspace Access Node disabled 14589 | -1/Access_0 | Subspace Access Node disabled 14599 | -1/Access_0 | A6 warped into view 14603 | -1/Access_0 | Assimilated A6 with FLK Orb 14605 | -1/Access_0 | Destroyed A6 14638 | -1/Access_0 | Subspace Access Node disabled 14653 | -1/Access_0 | Architect warped through subspace 14664 | -1/Access_0 | Assimilated A8 with FLK Orb 14679 | -1/Access_0 | A5 warped into view 14682 | -1/Access_0 | Assimilated A5 with FLK Orb 14689 | -1/Access_0 | Destroyed A5 14747 | -1/Access_0 | Subspace Access Node disabled 14777 | -1/Access_0 | Destroyed Architect 14778 | -1/Access_0 | Architect triggered a singularity event 14781 | -1/Access_0 | Found Hpw. Transdimensional Reconstructor 14781 | -1/Access_0 | Warped through subspace to slip node 14781 | -1/Access_0 | Discovered exit to Surface (range 8) 14783 | *** | Escaped singularity! Last Messages --------------- 14769_ Extracted 93 energy. 14770_ Penetrated by Quantum Shear. 14771_ Extracted 4 energy. 14772_ Architect regenerates Exp. Phase Shifter. 14772_ Destroyed Modified Sigix Sheargun. 14775_ Overload: Energy bleed (-86). 14775_ Penetrated by Quantum Shear. 14777_ Architect: "If I can't win, no one wins!" 14777_ Architect destroyed. 14778_ A0_COM: Initiating irreversible singularity event. Goodbye. 14779_ A0_COM: 10. 14779_ Dropped Cld. Nova Cannon. 14780_ A0_COM: 9. 14780_ Dropped Cld. Nova Cannon. 14781_ A0_COM: 8. 14781_ Acquired Hpw. Transdimensional Reconstructor. 14781_ Warped through subspace, drawn to slip node. 14781_ EXIT=FOUND: SURFACE 14782_ A0_COM: 7. 14783_ A0_COM: 6. Map ----- +----------------------------------------------------+ | | | | | | | | | | | | | | | | | | | | | | | | | | | | | | | | | ?????????????????????????????????????????????????? | | ?????????????????????????????????????????????????? | | ?????????????????????????????????????????????????? | | ?????????????????????????????????????????????????? | | ?????????????????????????????????????????????????? | | ?????????????????????????????????????????????????? | | ????????????????????????###??????????????????????? | | ???????????????????????## ##?????????????????????? | | ???????????????????????# #?????????????????????? | | ???????????????????????# @ #?????????????????????? | | ??????????????????????## #?????????????????????? | | ??????????????????????# #?????????????????????? | | ??????????????????????# ##?????????????????????? | | ??????????????????????## #?????????????????????? | | ??????????????????????# #?????????????????????? | | ??????????????????????# ##?????????????????????? | | ??????????????????????# < #?????????????????????? | | ??????????????????????# ##?????????????????????? | | ??????????????????????## #??????????????????????? | | ???????????????????????####??????????????????????? | | ?????????????????????????????????????????????????? | | ?????????????????????????????????????????????????? | | ?????????????????????????????????????????????????? | | ?????????????????????????????????????????????????? | | ?????????????????????????????????????????????????? | | ?????????????????????????????????????????????????? | | ?????????????????????????????????????????????????? | | ?????????????????????????????????????????????????? | | ?????????????????????????????????????????????????? | | ?????????????????????????????????????????????????? | | ?????????????????????????????????????????????????? | | ?????????????????????????????????????????????????? | | ?????????????????????????????????????????????????? | | ?????????????????????????????????????????????????? | +----------------------------------------------------+ Best States ------------- Heat Dissipation 180 Energy Generation 105 Energy Capacity 2180 Matter Stores 800 Matter Capacity 800 Sight Range 24 Robot Scan Range 20 Terrain Scan Density 10 Jamming Range 16 Power Amplification 30 Additional Mass Support 20 Armor Coverage 400 Resistance: KI 30 Resistance: TH 75 Utility Shielding 90 Weapon Cycling 25 Melee Speed Boost 50 Phase Shifting 15 Evasion (%) 94 Targeting Accuracy 20 Target Analysis 8 Core Analysis 8 Recoil Reduction 3 Particle Charging 25 Salvage Targeting 3 Offensive Hacking 22 Defensive Hacking 28 Item Schematics ----------------- Weapon Mount | -3/Section 7 | Hacked Biometal Heavy Treads | -3/Section 7 | Hacked Seismic Detector | -2/Research | Extracted Hellfire Missile Launcher | -2/Research | Extracted Adv. Melee Analysis Suite | -2/Research | Extracted Coolant Network | -2/Testing | Archive Com. Particle Reactor | -2/Testing | Archive Plasma Lance | -2/Testing | Archive Exp. Phase Shifter | -2/Testing | Archive Prc. Matter Filter | -2/Testing | Archive Vibroblade | -2/Testing | Archive Enh. Quantum Rifle | -2/Testing | Hacked Exp. Force Field | -2/Testing | Scanalyzed Cld. Q-thruster | -2/Testing | Archive Adv. Thermal Defense Suite | -2/Testing | Archive Cld. Antigrav System | -2/Testing | Archive Robot Schematics ------------------ B-74 Champion | -3/Section 7 | Hacked T-07 Excavator | -2/Testing | Archive A-27 Freighter | -2/Testing | Archive A-02 Transporter | -2/Testing | Archive G-73 Enforcer | -2/Testing | Archive Fabricated ------------ Weapon Mount | x2 | -2/Research Alien Tech Used ----------------- Integrated Reactor Transdimensional Reconstructor Phase Armor Core Reset Matrix Sigix Broadsword Integrated Mediator High-powered Transdimensional Reconstructor Subatomic Replicator Supercharged Integrated Reactor Integrity Redistributor Achievements -------------- None Challenges ------------ None Game ------ Seed RefineryXenonWings Manual? 0 Play Time 02:57:01 Cumulative 2455.6 hours Start 2023.04.03 @ 04:49:48 End 2023.04.03 @ 08:01:11 Sessions 3 Manual Loads 0 Difficulty Rogue Special Mode None Game No. 2814 Rogue 2806 Adventurer 0 Explorer 8 Win Type 6 Total 299 Types 49/32/103/3/3/5/101/2/1 Lore% 97 Gallery% 98 Achievement% 100 Wizard Run 0 Options --------- ASCII 0 Keyboard 1 Movement Numpad Keybinds 1 Fullscreen 2 Font 18/SmallcapsGlow Map View 76x50 Tactical HUD 1 Map Filters NONE Filters NONE Steam 1 RUN: 55e9ccd3-2117-4d1a-9fe1-d63840874003